Cogmind - Beta 13 *** ADVENTURER MODE // 2024.04.09 @ 15:45:38 Player: Peperos Result: Destroyed by as-65845 with Assembled Maul Performance ------------- Evolutions (0) 0 Regions Visited (2) 400 Robots Destroyed (23) 115 Value Destroyed (362) 362 Prototype IDs (2) 40 Alien Tech Used (0) 0 Bonus (0) 0 TOTAL SCORE: 917 Bonus ------- None Cogmind --------- Core Integrity 0/250 Matter 250/300 Energy 99/100 System Corruption 0% Temperature Cool (0) Movement Core (700) Ox13 Location -10/Mines Parts ------- > --- POWER (1) -------- (None) > --- PROPULSION (2) --- (None) > --- UTILITY (2) ------ High-capacity Storage Unit > --- WEAPON (2) ------- Light Assault Rifle > --- INVENTORY (20) --- Light Ion Engine Weight Redist. System Peak State ------------ > --- POWER ------------ Light Ion Engine > --- PROPULSION ------- Light Treads Light Treads > --- UTILITY ---------- Small Storage Unit Tractor Beam > --- WEAPON ----------- Light Assault Rifle Light Assault Rifle > --- INVENTORY -------- Light Ion Engine Medium Laser Medium Laser [Rating: 7] Favorites ----------- Power Light Ion Engine Engine Light Ion Engine Propulsion Light Treads Treads Light Treads Utility Structural Scanner Device Structural Scanner Storage High-capacity Storage Unit Protection Light Armor Plating Weapon Light Assault Rifle Energy Gun Medium Laser Ballistic Gun Light Assault Rifle Ballistic Cannon Light Cannon Build | -11 -10 -10 ------- Run | Yrd Mat Min Slots Evolved . | . . . Power . | . . . Propulsion . | . . . Utility . | . . . Weapon . | . . . Parts Attached 20 | 6 10 4 Power 1 | 1 . . Engine 1 | 1 . . Core . | . . . Reactor . | . . . Propulsion 4 | 2 1 1 Treads 4 | 2 1 1 Leg . | . . . Wheel . | . . . Hover . | . . . Flight . | . . . Utility 6 | 1 5 . Device 2 | . 2 . Storage 3 | 1 2 . Processor . | . . . Hackware . | . . . Protection 1 | . 1 . Artifact . | . . . Weapon 9 | 2 4 3 Energy Gun 1 | 1 . . Energy Cannon . | . . . Ballistic Gun 7 | 1 3 3 Ballistic Cannon 1 | . 1 . Launcher . | . . . Special Weapon . | . . . Impact Weapon . | . . . Slashing Weapon . | . . . Piercing Weapon . | . . . Special Melee Weapon . | . . . Unidentified Prototypes . | . . . Parts Lost 9 | . . 9 Power 1 | . . 1 Propulsion 3 | . . 3 Utility 1 | . . 1 Weapon 4 | . . 4 Highest Loss Streak 9 | . . 9 To Critical Strikes . | . . . Average Slot Usage (%) 96 | . 97 93 Engine 13 | . 14 11 Treads 27 | . 27 26 Device 10 | . 9 13 Storage 14 | . 14 14 Protection 1 | . 2 . Ballistic Gun 22 | . 24 15 Ballistic Cannon 5 | . 3 11 Naked Turns . | . . . Heaviest Build 49 | 11 49 49 Greatest Support 40 | 40 40 40 Greatest Overweight (x) 2 | . 2 2 Average Overweight (x) . | . . 1 Largest Inventory Capacity 25 | 8 25 20 Average Capacity 15 | 6 15 20 Most Carried 7 | 2 7 6 Average Carried 4 | 1 4 5 Final Capacity 20 | 8 20 20 Final Carried 6 | 2 6 2 Class Distribution -------------------- 100% | Mutant Dominant Class ---------------- Mutant | -10/Materials Mutant | -10/Mines Resources | -11 -10 -10 ----------- Run | Yrd Mat Min Matter Collected 568 | 180 348 40 Remotely 10 | . 10 . Salvage Created 796 | . 749 47 Parts 56 | . 56 . Haulers Intercepted 1 | . 1 . Recyclers Shooed 6 | . 6 . Parts Field Recycled . | . . . Retrieved Matter . | . . . Parts Self-Destructed . | . . . Prevented . | . . . Kills | -11 -10 -10 ------- Run | Yrd Mat Min Combat Hostiles Destroyed 14 | . 10 4 Guns 14 | . 10 4 Classes Destroyed 9 | . 7 2 Worker 1 | . 1 . Builder 3 | . 3 . Hauler 1 | . 1 . Recycler 4 | . 4 . Watcher 3 | . 3 . Swarmer 6 | . 6 . Grunt 4 | . 4 . Demolisher 1 | . . 1 Assembled 3 | . . 3 Best Kill Streak 5 | . 5 4 Combat Bots Only 4 | . 3 4 Max Kills in Single Turn 1 | . 1 1 Gunslinging . | . . . Exploded . | . . . Melee . | . . . Uniques/NPCs Destroyed . | . . . Combat | -11 -10 -10 -------- Run | Yrd Mat Min Hostile Shots Fired 97 | . 44 53 Missed 27 | . 16 11 Damage Taken 1258 | . 215 1043 Core 259 | . 20 239 Absorbed by Shields . | . . . Ignored by Resistances 351 | . 69 282 Core Remaining (%) 100 | 100 . . Volleys Fired 96 | . 71 25 Largest 2 | . 2 2 Hottest 55 | . 55 55 Shots Fired 179 | . 142 37 Gun 165 | . 130 35 Cannon 14 | . 12 2 Launcher . | . . . Special . | . . . Kinetic 179 | . 142 37 Thermal . | . . . Explosive . | . . . Electromagnetic . | . . . Robot Hit Streak 18 | . 18 9 Robot Miss Streak 4 | . 4 1 Penetration Max . | . . . Secondary Targets 1 | . . 1 Max Gunslinging Chain 1 | . . 1 Shots Hit Robots 131 | . 98 33 Core Hits 59 | . 43 16 Critical Kills . | . . . Critical Parts Destroyed 1 | . . 1 Critical Strikes 1 | . . 1 Destroy 1 | . . 1 Melee Attacks . | . . . Impact . | . . . Slashing . | . . . Piercing . | . . . Sneak Attacks . | . . . Combat Hostiles . | . . . Follow-up Attacks . | . . . Damage Inflicted 1212 | . 906 306 Guns 1109 | . 838 271 Cannons 103 | . 68 35 Explosions . | . . . Melee . | . . . Ramming . | . . . Kinetic 1212 | . 906 306 Thermal . | . . . Explosive . | . . . Electromagnetic . | . . . Impact . | . . . Slashing . | . . . Piercing . | . . . Highest Corruption . | . . . Average Corruption . | . . . Corruption Purged . | . . . Corruption Blocked . | . . . Overload Shots . | . . . Overflow Damage . | . . . Projectiles . | . . . Explosions . | . . . Melee . | . . . Knockbacks 4 | . 2 2 Impact . | . . . Kinetic 4 | . 2 2 Secondary . | . . . Self-Inflicted Damage . | . . . Shots . | . . . Rammed . | . . . Targets Rammed . | . . . Kicked . | . . . Crushed . | . . . Highest Temperature 20 | . 20 . Average Temperature 7 | . 7 . Received Heat Transfer 60 | . 48 12 Siege Activations . | . . . Robots Corrupted . | . . . Combat Hostiles . | . . . Parts Fried . | . . . Impact Corruptions . | . . . Robots Melted . | . . . Combat Hostiles . | . . . Parts Melted . | . . . Heat Transferred . | . . . Parts Sabotaged . | . . . Parts Stolen . | . . . Parts Stripped . | . . . Power Chain Reactions . | . . . Alert | -11 -10 -10 ------- Run | Yrd Mat Min Peak Influence 149 | . 149 30 Initial 23 | . . 23 Average 20 | . 21 20 Maximum Alert Level . | . . . Low Security (%) 100 | 100 100 100 Level 1 . | . . . Level 2 . | . . . Level 3 . | . . . Level 4 . | . . . Level 5 . | . . . High Security . | . . . Max Security . | . . . Squads Dispatched 1 | . 1 . Investigation 1 | . 1 . Extermination . | . . . Reinforcement . | . . . Assault . | . . . Garrison . | . . . Intercept . | . . . Searches Triggered . | . . . Construction Impeded . | . . . Haulers Reinforced . | . . . Active Scanning Responses . | . . . Cargo Convoy Interrupts . | . . . Stealth | -11 -10 -10 --------- Run | Yrd Mat Min Distress Signals 1 | . 1 . Communications Jammed . | . . . Distress Signals . | . . . Times Spotted 31 | . 16 15 Peak Tracking Total 7 | . 5 7 Tactical Retreats . | . . . Traps | -11 -10 -10 ------- Run | Yrd Mat Min Traps Triggered 2 | . 2 . Indirectly . | . . . Trap Hack Attempts . | . . . Triggered . | . . . Disarmed . | . . . Reprogrammed . | . . . Reused . | . . . Traps Extracted . | . . . Installed . | . . . Triggered . | . . . Machines | -11 -10 -10 ---------- Run | Yrd Mat Min Machines Disabled 1 | . 1 . Max in Single Turn 1 | . 1 . Machines Repaired . | . . . Machines Dismantled . | . . . Machines Sabotaged . | . . . Overloaded Fab Kills . | . . . Hacking | -11 -10 -10 --------- Run | Yrd Mat Min Machines Accessed 3 | . 3 . Terminals 3 | . 3 . Fabricators . | . . . Repair Stations . | . . . Recycling Units . | . . . Scanalyzers . | . . . Garrison Access . | . . . Total Hacks 6 | . 6 . Successful 4 | . 4 . Failed 2 | . 2 . Catastrophic . | . . . Database Lockouts . | . . . Manual 2 | . 2 . Terminals 6 | . 6 . Fabricators . | . . . Repair Stations . | . . . Recycling Units . | . . . Scanalyzers . | . . . Garrison Access . | . . . Terminal Hacks 4 | . 4 . Prototype ID Bank 1 | . 1 . Terminal Index 1 | . 1 . Unreport Threat 1 | . 1 . Transport Status 1 | . 1 . Fabricator Hacks . | . . . Repair Station Hacks . | . . . Recycling Unit Hacks . | . . . Scanalyzer . | . . . Garrison Access Hacks . | . . . Unauthorized Hacks . | . . . Terminals . | . . . Fabricators . | . . . Repair Stations . | . . . Recycling Units . | . . . Scanalyzers . | . . . Garrison Access . | . . . Data Cores Recovered . | . . . Used . | . . . Hacking Detections 2 | . 2 . Full Trace Events 1 | . 1 . Feedback Events . | . . . Feedback Blocked . | . . . Robot Schematics Acquired . | . . . Robots Built . | . . . Authchips . | . . . Time . | . . . Total Robot Build Rating . | . . . Part Schematics Acquired . | . . . Parts Built . | . . . Authchips . | . . . Time . | . . . Total Part Build Rating . | . . . Parts Repaired . | . . . Time . | . . . Parts Recycled . | . . . Recycled Matter . | . . . Retrieved Matter . | . . . Retrieved Components . | . . . Parts Scanalyzed . | . . . Part Schematics Acquired . | . . . Parts Damaged . | . . . Bothacking | -11 -10 -10 ------------ Run | Yrd Mat Min Used RIF Installer . | . . . Robots Hacked . | . . . Non-combat . | . . . Combat . | . . . Robot Hacks Applied . | . . . Relay Couplers Released . | . . . Fabnet Peak Effective % . | . . . Robots Rewired . | . . . Allies Hacked . | . . . Hacks Repelled . | . . . Allies | -11 -10 -10 -------- Run | Yrd Mat Min Total Allies . | . . . Largest Group . | . . . Highest-Rated Group . | . . . Highest-Rated Ally . | . . . Total Orders . | . . . Ally Attacks . | . . . Total Damage . | . . . Kills . | . . . Allies Corrupted . | . . . Allies Melted . | . . . Intel | -11 -10 -10 ------- Run | Yrd Mat Min Robot Analysis Total . | . . . Derelict Logs Recovered 2 | . . 2 Drone Launches . | . . . Drone Recoveries . | . . . Exploration | -11 -10 -10 ------------- Run | Yrd Mat Min Turns Passed 1829 | 89 1380 360 Spaces Moved 724 | 52 547 125 Core 4 | 4 . . Treads 720 | 48 547 125 Legs . | . . . Wheels . | . . . Hover . | . . . Flight . | . . . Fastest Speed 50 | 50 160 240 Average Speed 208 | 151 206 241 Slowest Speed 320 | 160 320 320 Overloaded Moves . | . . . Propulsion Burnouts . | . . . Robots Hopped . | . . . Cave-ins Triggered . | . . . Exploration Rate (%) 37 | 4 81 28 Regions Visited 2 Branch Regions 1 Pre-discovered Areas . | . . . Known Exits Taken . | . . . Unknown Exits Taken 2 | 1 1 . Scrap Searched . | . . . Spaces Dug . | . . . Terrain Destroyed . | . . . Melee . | . . . Projectile . | . . . AOE . | . . . Terrain Rammed . | . . . Walls Destroyed . | . . . Machines Disabled . | . . . Actions | -11 -10 -10 --------- Run | Yrd Mat Min Total 892 | 59 679 154 Wait 39 | . 39 . Move 722 | 51 546 125 Hop . | . . . Pick Up 7 | 2 5 . Fast Attach 15 | 6 9 . Attach 4 | . . 4 Detach 1 | . 1 . Swap 1 | . 1 . Drop 7 | . 7 . Fire 96 | . 71 25 Melee . | . . . Ram . | . . . Kick . | . . . Crush . | . . . Escape Stasis . | . . . Rewire . | . . . Trap . | . . . Miscellaneous . | . . . Route ------- -11/Scrapyard -10/Materials (discovered 5 exits: [*Mat x2] / [*Min x2] / [*Sub]) -10/Mines History --------- Turn | Location | Event 34 | -11/Scrapyard | Discovered new exit (range 16) 90 | -11/Scrapyard | Entered Materials 300 | -10/Materials | Build established: Mutant 375 | -10/Materials | Discovered new exit (range 16) 650 | -10/Materials | Discovered new exit (range 16) 965 | -10/Materials | Discovered new exit (range 9) 1119 | -10/Materials | Discovered new exit (range 4) 1229 | -10/Materials | Discovered new exit (range 16) 1470 | -10/Materials | Entered Mines 1478 | -10/Mines | Met a Derelict bent on vengeance 1636 | -10/Mines | Learned location of 2 exits from Materials 1662 | -10/Mines | Learned Materials terminal intel 1721 | -10/Mines | Assembled infested the area 1779 | -10/Mines | Core integrity fell below 50% 1823 | -10/Mines | Core integrity fell below 20% 1830 | -10/Mines | Destroyed by as-65845 with Assembled Maul Last Messages --------------- 01790_ U-05 Engineer lays Concrete. 01792_ D-53 Grenadier destroyed. 01792_ Switching to secondary target: as-75476. 01793_ The unstable cave ceiling collapses. 01793_ U-05 Engineer builds a Wall. 01794_ The unstable cave ceiling collapses. 01798_ as-75476 destroyed. 01799_ The unstable cave ceiling collapses. 01804_ Lgt. Assault Rifle destroyed. 01805_ as-76253 destroyed. 01806_ The unstable cave ceiling collapses. 01806_ U-05 Engineer destroyed. 01807_ Acquired 16 matter. 01810_ Acquired 20 matter. 01811_ The unstable cave ceiling collapses. 01820_ Lgt. Treads destroyed. 01821_ Structural Scanner destroyed. 01823_ as-54881 destroyed. 01824_ Knocked back. 01829_ The unstable cave ceiling collapses. Map ----- +----------------------------------------------------+ | ?????????????## #????## ### ######### ???????? | | ?????????????## ###?### ### ######### ##?????? | | ######???????## ####### ### ##?????? | | #######??????### ##### ############?????? | | ## ###???????### #### #### #########????????? | | # ##????????### #### ##???????????????? | | # ##?????????## ######### ##???????????????? | | ## ###?????????## ######### ####???????????????? | | ## ##??????????## ##?????## ####???????????????? | | # ############## ##?????## ##?????????????????? | | ############### ##?????## ##?????????????????? | | ### #####??## ##?????????????????? | | ### ####################?## ##?????????????????? | | ## ############### ###### ##?????????????????? | | ###????????## ##### ##?????????????????? | | ###???????## #### ##?????????????????? | | ###???????## #### ##?????????????????? | | ###??????### #### ##?????????????????? | | ## ###????#####% "%" ##?????????????????? | | #### ##?######## #######?????????????????? | | ##### ######### ####????????????????? | | ##?### ####### # # ## ##????????????????? | | ##??####### # # # # ##????????????????? | | ##???#####! # ## ##????????????????? | | ##???## =%* %% %a ##????????????????? | | ###???# ## % a@ # ##????????????????? | | ### ??????#### aa # ###????????????????? | | ###????????#### ## ###????????????????? | | ????????????###### #####????????????????? | | ?????????????####### ###?????????????????? | | ????????????????########## # ##??????????????????? | | ??????????????????#############??????????????????? | | ????????????????????????#######??????????????????? | | ?????????????????????????????????????????????????? | | ?????????????????????????????????????????????????? | | ?????????????????????????????????????????????????? | | ?????????????????????????????????????????????????? | | ?????????????????????????????????????????????????? | | ?????????????????????????????????????????????????? | | ?????????????????????????????????????????????????? | | ?????????????????????????????????????????????????? | | ?????????????????????????????????????????????????? | | ?????????????????????????????????????????????????? | | ?????????????????????????????????????????????????? | | ?????????????????????????????????????????????????? | | ?????????????????????????????????????????????????? | | ?????????????????????????????????????????????????? | | ?????????????????????????????????????????????????? | | ?????????????????????????????????????????????????? | | ?????????????????????????????????????????????????? | +----------------------------------------------------+ Best States ------------- Heat Dissipation 25 Energy Generation 10 Energy Capacity 125 Matter Stores 300 Matter Capacity 300 Sight Range 16 Terrain Scan Density 10 Armor Coverage 150 Resistance: KI 20 Resistance: TH 20 Resistance: EX 20 Resistance: EM 20 Resistance: I 20 Resistance: S 20 Resistance: P 20 Evasion (%) 40 Recoil Reduction 2 Offensive Hacking 10 Item Schematics ----------------- None Robot Schematics ------------------ None Fabricated ------------ Nothing Alien Tech Used ----------------- None Achievements -------------- None Challenges ------------ None Game ------ Seed BottomlessGhostRegenerator Manual? 0 Play Time 00:11:33 Cumulative 27.6 hours Start 2024.04.09 @ 15:09:24 End 2024.04.09 @ 15:45:38 Sessions 2 Manual Loads 0 Difficulty Adventurer Special Mode None Game No. 25 Rogue 20 Adventurer 5 Explorer 0 Win Type - Total 2 Types 2/0/0/0/0/0/0/0/0 Lore% 26 Gallery% 28 Achievement% 30 Wizard Run 0 Options --------- Layout 1 ASCII 0 Keyboard 0 Movement Mouse Keybinds 0 Fullscreen 1 Font 24/Smallcaps Map View 50x35 Zoom Use 0% Tactical HUD 1 Map Filters NONE Filters NONE Steam 1 RUN: 06d497bd-ee9b-4e22-ba61-654db3bec421